lending/lending_fUSD_20260317
["ID","MTS","AMOUNT","RATE_DAILY","PERIOD"]
[408477619,1773711046781,-700.0,0.0001747,2]
[408477620,1773711046791,-2634.55866683,0.00017477,2]
[408477621,1773711046802,-4549.46542382,0.00017477,2]
[408477622,1773711046811,-7901.43407618,0.00017477,2]
[408477627,1773711252663,174.49,9.407e-05,2]
[408477628,1773711272322,-1313.28,0.00011507,2]
[408477629,1773711272343,-164.83,0.00011759,2]
[408477630,1773711272363,-150.0,0.00012095,2]
[408477631,1773711272385,-3371.89,0.00012096,2]
[408477632,1773711274890,-5000.0,0.00012096,2]
[408477633,1773711276091,-5000.0,0.00012096,2]
[408477634,1773711277179,-5000.0,0.00012096,2]
[408477635,1773711278169,-5000.0,0.00012096,2]
[408477636,1773711279120,-5000.0,0.00012096,2]
[408477637,1773711280058,-5000.0,0.00012096,2]
[408477638,1773711281000,-5000.0,0.00012096,2]
[408477639,1773711281683,-5000.0,0.00012096,2]
[408477640,1773711282044,-5000.0,0.00012096,2]
[408477641,1773711282373,-5000.0,0.00012096,2]
[408477642,1773711282713,-5000.0,0.00012096,2]
[408477643,1773711283115,-5000.0,0.00012096,2]
[408477644,1773711283394,-5000.0,0.00012096,2]
[408477645,1773711283738,-5000.0,0.00012096,2]
[408477646,1773711284143,-5000.0,0.00012096,2]
[408477647,1773711284426,-5000.0,0.00012096,2]
[408477648,1773711284792,-5000.0,0.00012096,2]
[408477649,1773711285704,-5000.0,0.00012096,2]
[408477650,1773711442619,-1200.0,0.00012095,2]
[408477651,1773711442653,-300.0,0.00012095,2]
[408477652,1773711442677,-3500.0,0.00012096,2]
[408477653,1773711446490,-5000.0,0.00012096,2]
[408477654,1773711448791,-5000.0,0.00012096,2]
[408477655,1773711451488,-5000.0,0.00012096,2]
[408477656,1773711497703,10000.0,9.501e-05,2]
[408477657,1773711507099,10000.0,9.501e-05,2]
[408477658,1773711515632,10000.0,9.501e-05,2]
[408477659,1773711525460,10000.0,9.501e-05,2]
[408477660,1773711533766,10000.0,9.501e-05,2]
[408477661,1773711545155,187.0,9.501e-05,3]
[408477662,1773711564324,580.0,9.501e-05,2]
[408477665,1773712102805,71174.0,0.0002,120]
[408477673,1773712231414,-166.66,0.00011171,2]
[408477674,1773712231427,-89.77587715,0.00011226,2]
[408477675,1773712231439,-131.17009917,0.00011226,2]
[408477676,1773712231448,-4729.65959388,0.00011289,2]
[408477677,1773712231459,-166.66,0.00011406,2]
[408477678,1773712231468,-200.0,0.000116,2]
[408477679,1773712231477,-166.66,0.00011641,2]
[408477680,1773712231487,-328.75,0.00011759,2]
[408477681,1773712231496,-1200.0,0.00011849,2]
[408477682,1773712231506,-300.0,0.0001185,2]
[408477683,1773712231516,-300.0,0.0001185,2]
[408477684,1773712231525,-1200.0,0.0001185,2]
[408477685,1773712231535,-2002.87487998,0.00011851,2]
[408477686,1773712231547,-25161.44383311,0.00011851,2]
[408477687,1773712231557,-166.66,0.00011877,2]
[408477688,1773712231567,-202.08,0.00012055,2]
[408477689,1773712231576,-152.86008314,0.00012077,2]
[408477690,1773712231585,-150.99,0.00012094,2]
[408477692,1773712231595,-1072.95,0.00012094,2]
[408477694,1773712231605,-154.192,0.00012096,2]
[408477695,1773712231614,-3127.123,0.00012096,2]
[408477697,1773712231624,-912.0,0.00012098,2]
[408477699,1773712231634,-150.0,0.00012099,2]
[408477700,1773712231644,-166.66,0.00012112,2]
[408477703,1773712231655,-1106.1503896,0.00012122,2]
[408477708,1773712231667,-353.0,0.0001219,2]
[408477711,1773712231676,-5000.0,0.00012288,2]
[408477714,1773712231686,-415.65002692,0.00012288,2]
[408477716,1773712231695,-166.66,0.00012347,2]
[408477717,1773712231704,-153.214246,0.00012431,2]
[408477719,1773712231713,-32568.8215,0.00012431,2]
[408477721,1773712231723,-1646.6099,0.00012431,2]
[408477723,1773712231732,-36515.039,0.00012431,2]
[408477736,1773712231930,-164.83,0.00012494,2]
[408477737,1773712231941,-3492.1664,0.00012531,2]
[408477738,1773712231951,-2500.0,0.00012531,2]
[408477739,1773712231960,-159.50117954,0.00012628,2]
[408477740,1773712231969,-151.0,0.00012628,2]
[408477741,1773712231978,-125382.5389,0.00012631,2]
[408477742,1773712231988,-1000.0,0.00012632,2]
[408477743,1773712232002,-500.0,0.0001267,2]
[408477744,1773712232011,-20481.85609133,0.00012671,2]
[408477746,1773712237497,-620.76792063,0.0001267,2]
[408477747,1773712237508,-78.821876,0.0001267,2]
[408477748,1773712237519,-421.178124,0.0001267,2]
[408477749,1773712237528,-232.8304386,0.0001267,2]
[408477750,1773712237538,-500.0,0.0001267,2]
[408477751,1773712237547,-500.0,0.0001267,2]
[408477752,1773712237556,-37.83293251,0.0001267,2]
[408477758,1773712237846,-118.67526591,0.0001267,2]
[408477759,1773712237855,-500.0,0.0001267,2]
[408477760,1773712237865,-500.0,0.0001267,2]
[408477761,1773712237874,-500.0,0.0001267,2]
[408477762,1773712237883,-500.0,0.0001267,2]
[408477763,1773712237893,-220.08592184,0.0001267,2]
[408477764,1773712237904,-279.91407816,0.0001267,2]
[408477765,1773712237914,-500.0,0.0001267,2]
[408477766,1773712237922,-500.0,0.0001267,2]
[408477767,1773712237931,-500.0,0.0001267,2]
[408477768,1773712237940,-500.0,0.0001267,2]
[408477769,1773712237953,-278.25041251,0.0001267,2]
[408477770,1773712237966,-221.74958749,0.0001267,2]
[408477771,1773712237977,-500.0,0.0001267,2]
[408477772,1773712237987,-500.0,0.0001267,2]
[408477773,1773712237999,-500.0,0.0001267,2]
[408477774,1773712238008,-500.0,0.0001267,2]
[408477775,1773712238017,-500.0,0.0001267,2]
[408477776,1773712238027,-290.60436835,0.0001267,2]
[408477777,1773712238039,-209.39563165,0.0001267,2]
[408477778,1773712238049,-500.0,0.0001267,2]
[408477779,1773712238064,-500.0,0.0001267,2]
[408477780,1773712238075,-403.99287509,0.0001267,2]
[408477781,1773712238100,-96.00712491,0.0001267,2]
[408477782,1773712238111,-250.22196543,0.0001267,2]
[408477789,1773712239645,-5137.23485158,0.00012532,2]
[408477790,1773712239655,-249.77803457,0.0001267,2]
[408477791,1773712239664,-500.0,0.0001267,2]
[408477792,1773712239673,-500.0,0.0001267,2]
[408477793,1773712239682,-500.0,0.0001267,2]
[408477794,1773712239691,-500.0,0.0001267,2]
[408477795,1773712239700,-500.0,0.0001267,2]
[408477796,1773712239709,-500.0,0.0001267,2]
[408477797,1773712239718,-524.55271364,0.0001267,2]
[408477798,1773712239727,-500.0,0.0001267,2]
[408477799,1773712239736,-500.0,0.0001267,2]
[408477800,1773712239745,-438.5026542,0.0001267,2]
[408477801,1773712239805,-61.4973458,0.0001267,2]
[408477802,1773712239815,-500.0,0.0001267,2]
[408477803,1773712239825,-500.0,0.0001267,2]
[408477804,1773712239835,-500.0,0.0001267,2]
[408477805,1773712239845,-500.0,0.0001267,2]
[408477806,1773712239856,-500.0,0.0001267,2]
[408477807,1773712239865,-500.0,0.0001267,2]
[408477808,1773712239875,-500.0,0.0001267,2]
[408477809,1773712239884,-500.0,0.0001267,2]
[408477810,1773712239894,-374.0591542,0.0001267,2]
[408477814,1773712240279,-125.9408458,0.0001267,2]
[408477816,1773712240290,-271.18977997,0.0001267,2]
[408477817,1773712240347,-369.0,0.00011759,2]
[408477824,1773712244809,-461.19560104,0.00011759,2]
[408477825,1773712244820,-669.80439896,0.00011759,2]
[408477826,1773712244830,-228.81022003,0.0001267,2]
[408477827,1773712244840,-500.0,0.0001267,2]
[408477828,1773712244849,-500.0,0.0001267,2]
[408477829,1773712244858,-500.0,0.0001267,2]
[408477830,1773712244868,-500.0,0.0001267,2]
[408477831,1773712244877,-500.0,0.0001267,2]
[408477832,1773712244886,-500.0,0.0001267,2]
[408477833,1773712244896,-500.0,0.0001267,2]
[408477834,1773712244905,-7032.50819994,0.00012671,2]
[408477835,1773712244925,-300.0,0.00012671,2]
[408477843,1773712245393,-733.83,0.00012671,2]
[408477844,1773712245603,-8856.68152328,0.00012671,2]
[408477845,1773712245657,-7892.035199,0.00012671,2]
[408477848,1773712357258,356.64,9.501e-05,2]
[408477851,1773712630097,222.0,0.0002,120]
[408477866,1773712961401,77617.66100468,9.5e-05,3]
[408477895,1773713431637,-259.83,0.00011759,2]
[408477896,1773713431648,-150.0,0.00011759,2]
[408477897,1773713431658,-150.0,0.00011759,2]
[408477898,1773713431667,-200.0,0.00011759,2]
[408477899,1773713431677,-204.67054795,0.00011795,2]
[408477900,1773713431686,-204.67054794,0.00011886,2]
[408477901,1773713431695,-150.0,0.00011895,2]
[408477902,1773713431704,-1200.0,0.00011895,2]
[408477903,1773713431713,-6759.8903,0.00011896,2]
[408477904,1773713431723,-970.1904,0.00011896,2]
[408477905,1773713431732,-55776.3308,0.00011896,2]
[408477906,1773713431741,-8651.6215,0.00011896,2]
[408477907,1773713431751,-18783.17271149,0.00011896,2]
[408477908,1773713431762,-58415.31314526,0.00011896,2]
[408477909,1773713431776,-33625.01574325,0.00011896,2]
[408477910,1773713431786,-7641.73177884,0.00011986,2]
[408477912,1773713431800,-1966.1406658,0.00011986,2]
[408477913,1773713431809,-151.0,0.00011989,2]
[408477915,1773713431819,-151.0,0.00011989,2]
[408477916,1773713431828,-151.0,0.00011989,2]
[408477917,1773713431837,-151.0,0.00011989,2]
[408477918,1773713431846,-151.0,0.00011989,2]
[408477920,1773713431855,-201.90892097,0.00011989,2]
[408477921,1773713431865,-151.0,0.00011989,2]
[408477922,1773713431874,-151.0,0.00011989,2]
[408477923,1773713431883,-151.0,0.00011989,2]
[408477924,1773713431893,-151.0,0.00011989,2]
[408477925,1773713431902,-151.0,0.00011989,2]
[408477926,1773713431912,-166.13916775,0.00011989,2]
[408477927,1773713431921,-371.89751715,0.00012113,2]
[408477928,1773713431931,-999.0,0.00012331,2]
[408477929,1773713431941,-999.0,0.00012331,2]
[408477930,1773713431950,-1230.38625924,0.000124,2]
[408477931,1773713431959,-999.0,0.00012423,2]
[408477932,1773713431969,-999.0,0.00012431,2]
[408477933,1773713431978,-999.0,0.00012531,2]
[408477934,1773713431988,-4937.356456,0.00012531,2]
[408477935,1773713432004,-600.0,0.00012531,2]
[408477937,1773713437667,-27428.876544,0.00012531,2]
[408477938,1773713437677,-1000.0,0.00012531,2]
[408477939,1773713437687,-2501.699,0.00012532,2]
[408477940,1773713437699,-154.192,0.00012532,2]
[408477941,1773713437711,-7849.95491205,0.0001255,2]
[408477942,1773713437721,-2500.0,0.00012571,2]
[408477943,1773713437730,-2603.5832888,0.00012628,2]
[408477944,1773713437740,-4380.4778502,0.00012628,2]
[408477945,1773713437751,-1559.1098308,0.00012628,2]
[408477946,1773713437760,-5019.37325368,0.00012628,2]
[408477947,1773713437772,-2098.26057946,0.00012628,2]
[408477948,1773713437783,-1539.21727524,0.00012628,2]
[408477949,1773713437794,-3217.042631,0.00012628,2]
[408477950,1773713437879,-3685.56,0.00012628,2]
[408477960,1773713439912,-1688.3010861,0.00012628,2]
[408477961,1773713440229,-287.07078065,0.00012628,2]
[408477980,1773713445936,-15047.6,0.00011896,2]
[408477981,1773713445948,-7854.8739,0.00011896,2]
[408477982,1773713445958,-1801.92376599,0.00012571,2]
[408477983,1773713445968,-1426.45932847,0.00012628,2]
[408477985,1773713445977,-661.74300554,0.00012671,2]
[408477988,1773713970341,163.19,5.879e-05,2]
[408477989,1773713970773,163.19,6.189e-05,2]
[408477990,1773713970973,163.19,6.498e-05,2]
[408477991,1773713971191,163.19,6.808e-05,2]
[408477992,1773713971405,163.19,7.117e-05,2]
[408477993,1773713971641,163.19,7.427e-05,2]
[408477994,1773713971842,163.19,7.736e-05,2]
[408477995,1773713972333,163.19,8.046e-05,2]
[408477996,1773713972372,163.19,8.355e-05,2]
[408477997,1773713972489,163.19,8.665e-05,2]
[408477998,1773713972700,163.19,8.974e-05,2]
[408477999,1773713973239,163.19,9.283e-05,2]
[408478000,1773714140899,1808.1,0.0002,120]
[408478011,1773714580311,179.77,8.74e-05,2]
[408478012,1773714631742,-163.19,9.593e-05,2]
[408478013,1773714631752,-229.0,9.593e-05,2]
[408478014,1773714631764,-7.9261207,9.902e-05,2]
[408478015,1773714631775,-155.2638793,9.902e-05,2]
[408478016,1773714631786,-163.19,0.00010212,2]
[408478017,1773714631797,-21.29872684,0.00010521,2]
[408478018,1773714631808,-141.89127316,0.00010521,2]
[408478019,1773714631821,-168.66700378,0.00010552,2]
[408478020,1773714631832,-84.88950689,0.00010552,2]
[408478021,1773714631841,-193.59445064,0.00010552,2]
[408478022,1773714631851,-55.54089247,0.00010552,2]
[408478023,1773714631861,-194.45910753,0.00010552,2]
[408478024,1773714631870,-163.19,0.00010831,2]
[408478025,1773714631880,-153.76089247,0.00010959,2]
[408478026,1773714631903,-12.89910753,0.00010959,2]
[408478027,1773714631911,-163.19,0.0001114,2]
[408478028,1773714631922,-166.66,0.00011149,2]
[408478029,1773714631931,-166.66,0.00011339,2]
[408478030,1773714631940,-1210.0,0.00011348,2]
[408478031,1773714631949,-151.0,0.00011439,2]
[408478032,1773714631958,-385.0,0.00011439,2]
[408478034,1773714631968,-163.19,0.0001145,2]
[408478036,1773714631977,-500.0,0.00011452,2]
[408478037,1773714631986,-166.0,0.00011462,2]
[408478038,1773714631996,-1304.09,0.00011507,2]
[408478039,1773714632005,-166.66,0.0001153,2]
[408478040,1773714632016,-1200.0,0.00011695,2]
[408478043,1773714632025,-300.0,0.00011695,2]
[408478045,1773714632034,-300.0,0.00011695,2]
[408478047,1773714632044,-3228.0371,0.00011696,2]
[408478050,1773714632053,-166.66,0.0001172,2]
[408478052,1773714632062,-2000.0,0.00011759,2]
[408478054,1773714632071,-3499.79,0.00011759,2]
[408478056,1773714632080,-163.19,0.00011759,2]
[408478058,1773714632089,-150.0,0.00011788,2]
[408478060,1773714632099,-500.0,0.00011789,2]
[408478062,1773714632108,-500.0,0.00011789,2]
[408478064,1773714632117,-500.0,0.00011789,2]
[408478065,1773714632126,-500.0,0.00011789,2]
[408478066,1773714632136,-500.0,0.00011789,2]
[408478067,1773714632145,-500.0,0.00011789,2]
[408478068,1773714632156,-500.0,0.00011789,2]
[408478069,1773714632165,-500.0,0.00011789,2]
[408478070,1773714632174,-151.0,0.00011789,2]
[408478071,1773714632184,-500.0,0.00011789,2]
[408478072,1773714632193,-151.0,0.00011789,2]
[408478073,1773714632202,-532.46797138,0.00011789,2]
[408478074,1773714632212,-151.0,0.00011789,2]
[408478075,1773714632221,-200.0,0.00011789,2]
[408478076,1773714632230,-151.0,0.00011789,2]
[408478077,1773714632240,-500.0,0.00011789,2]
[408478078,1773714632249,-529.26856008,0.00011789,2]
[408478079,1773714632261,-62624.44633934,0.00011796,2]
[408478080,1773714632272,-19674.81964562,0.00011796,2]
[408478081,1773714632283,-1850.0,0.00011796,2]
[408478082,1773714632293,-4192.11405072,0.00011796,2]
[408478083,1773714632312,-609.10762,0.00011796,2]
[408478084,1773714632323,-867.29465335,0.00011796,2]
[408478085,1773714632333,-754.97899097,0.00011796,2]
[408478086,1773714632342,-500.0,0.0001189,2]
[408478087,1773714632352,-166.66,0.0001191,2]
[408478088,1773714632361,-15734.06867335,0.00012055,2]
[408478089,1773714637806,-500.0,0.0001191,2]
[408478090,1773714637815,-6940.63132665,0.00012055,2]
[408478091,1773714637825,-287.0707809,0.00012087,2]
[408478092,1773714637834,-4.95789245,0.00012087,2]
[408478093,1773714637845,-1190.54998205,0.00012087,2]
[408478094,1773714637854,-168.18,0.00012112,2]
[408478095,1773714637863,-268.09982294,0.00012184,2]
[408478096,1773714637874,-231.90017706,0.00012184,2]
[408478097,1773714637883,-1000.0,0.00012431,2]
[408478098,1773714637891,-170.82,0.00012441,2]
[408478099,1773714637901,-140.18892629,0.00012458,2]
[408478100,1773714637913,-359.81107371,0.00012458,2]
[408478101,1773714637922,-154.192,0.00012532,2]
[408478102,1773714637931,-1089.65105055,0.00012532,2]
[408478103,1773714637942,-911.70794945,0.00012532,2]
[408478104,1773714637951,-110.04560705,0.00012571,2]
[408478111,1773714640493,-6929.50712747,0.00012571,2]
[408478112,1773714640502,-444.23031441,0.00012575,2]
[408478117,1773714643174,-55.76968559,0.00012575,2]
[408478118,1773714643183,-21010.03180888,0.00012671,2]
[408478124,1773714645706,-12029.92921148,0.00012671,2]
[408478125,1773714645758,-4206.54370395,0.00012671,2]
[408478130,1773715147301,-500.0,0.00011595,2]
[408478131,1773715147325,-1500.0,0.00011618,2]
[408478132,1773715148771,-2000.0,0.00011618,2]
[408478133,1773715150395,-1500.0,0.00011618,2]
[408478134,1773715150416,-250.0,0.0001164,2]
[408478135,1773715150437,-250.0,0.00011657,2]
[408478136,1773715151992,-50.0,0.00011657,2]
[408478137,1773715152016,-1950.0,0.00011658,2]
[408478138,1773715153405,-2000.0,0.00011658,2]
[408478139,1773715167385,-990.0,0.00011658,2]
[408478144,1773715832185,-500.0,0.00011495,2]
[408478145,1773715832195,-244.0,0.00011495,2]
[408478146,1773715832205,-1346.48103045,0.00011545,2]
[408478147,1773715832215,-398.21314436,0.00011545,2]
[408478148,1773715832225,-300.0,0.00011595,2]
[408478149,1773715832235,-300.0,0.00011595,2]
[408478150,1773715832244,-300.0,0.00011595,2]
[408478151,1773715832254,-1200.0,0.00011595,2]
[408478152,1773715832264,-6758.9808,0.00011596,2]
[408478153,1773715832274,-46059.55992182,0.00011596,2]
[408478154,1773715837280,-500.0,0.00011595,2]
[408478155,1773715837289,-500.0,0.00011595,2]
[408478156,1773715837298,-500.0,0.00011595,2]
[408478157,1773715837307,-500.0,0.00011595,2]
[408478158,1773715837317,-500.0,0.00011595,2]
[408478159,1773715837328,-500.0,0.00011595,2]
[408478160,1773715837337,-500.0,0.00011595,2]
[408478161,1773715837346,-500.0,0.00011595,2]
[408478162,1773715837357,-649.11511658,0.00011595,2]
[408478163,1773715837367,-527.79179005,0.00011595,2]
[408478164,1773715837377,-380.55260898,0.00011595,2]
[408478165,1773715837386,-500.0,0.00011595,2]
[408478166,1773715837396,-500.0,0.00011595,2]
[408478167,1773715837406,-527.79179005,0.00011595,2]
[408478168,1773715837415,-435.40881718,0.00011595,2]
[408478169,1773715837426,-500.0,0.00011595,2]
[408478170,1773715837435,-500.0,0.00011595,2]
[408478171,1773715837445,-500.0,0.00011595,2]
[408478172,1773715837454,-527.79179005,0.00011595,2]
[408478173,1773715837463,-500.0,0.00011595,2]
[408478174,1773715837474,-500.0,0.00011595,2]
[408478175,1773715837484,-500.0,0.00011595,2]
[408478176,1773715837493,-527.79179005,0.00011595,2]
[408478177,1773715837503,-500.0,0.00011595,2]
[408478178,1773715837512,-500.0,0.00011595,2]
[408478179,1773715837523,-527.79179005,0.00011595,2]
[408478181,1773715837532,-500.0,0.00011595,2]
[408478183,1773715837541,-500.0,0.00011595,2]
[408478185,1773715837550,-527.79179005,0.00011595,2]
[408478187,1773715837559,-500.0,0.00011595,2]
[408478189,1773715837568,-500.0,0.00011595,2]
[408478191,1773715837577,-527.79179005,0.00011595,2]
[408478193,1773715837587,-500.0,0.00011595,2]
[408478195,1773715837596,-500.0,0.00011595,2]
[408478196,1773715837605,-500.0,0.00011595,2]
[408478197,1773715837614,-527.79179005,0.00011595,2]
[408478198,1773715837624,-500.0,0.00011595,2]
[408478199,1773715837633,-527.79179005,0.00011595,2]
[408478200,1773715837643,-500.0,0.00011595,2]
[408478201,1773715837653,-527.79179005,0.00011595,2]
[408478202,1773715837663,-500.0,0.00011595,2]
[408478203,1773715837674,-500.0,0.00011595,2]
[408478204,1773715837684,-500.0,0.00011595,2]
[408478205,1773715837694,-527.79179005,0.00011595,2]
[408478206,1773715837704,-500.0,0.00011595,2]
[408478207,1773715837716,-527.79179005,0.00011595,2]
[408478208,1773715837727,-500.0,0.00011595,2]
[408478209,1773715837739,-527.79179005,0.00011595,2]
[408478210,1773715837749,-500.0,0.00011595,2]
[408478211,1773715837760,-500.0,0.00011595,2]
[408478212,1773715837770,-527.79179005,0.00011595,2]
[408478213,1773715837781,-500.0,0.00011595,2]
[408478214,1773715837791,-527.79179005,0.00011595,2]
[408478215,1773715837800,-553.45273085,0.00011595,2]
[408478216,1773715837810,-500.0,0.00011595,2]
[408478217,1773715837820,-527.79179005,0.00011595,2]
[408478218,1773715837830,-500.0,0.00011595,2]
[408478219,1773715837840,-527.79179005,0.00011595,2]
[408478220,1773715837850,-527.79179005,0.00011595,2]
[408478221,1773715837859,-500.0,0.00011595,2]
[408478222,1773715837869,-527.79179005,0.00011595,2]
[408478223,1773715837878,-500.0,0.00011595,2]
[408478224,1773715837888,-527.79179005,0.00011595,2]
[408478225,1773715837897,-500.0,0.00011595,2]
[408478226,1773715837906,-527.79179005,0.00011595,2]
[408478227,1773715837915,-527.79179005,0.00011595,2]
[408478229,1773715837924,-500.0,0.00011595,2]
[408478230,1773715837933,-527.79179005,0.00011595,2]
[408478231,1773715837942,-527.79179005,0.00011595,2]
[408478232,1773715837950,-527.79179005,0.00011595,2]
[408478233,1773715837960,-527.79179005,0.00011595,2]
[408478234,1773715837969,-527.79179005,0.00011595,2]
[408478235,1773715837978,-527.79179005,0.00011595,2]
[408478236,1773715837988,-527.79179005,0.00011595,2]
[408478237,1773715837998,-527.79179005,0.00011595,2]
[408478238,1773715838008,-527.79179005,0.00011595,2]
[408478239,1773715838018,-527.79179005,0.00011595,2]
[408478240,1773715838028,-527.79179005,0.00011595,2]
[408478241,1773715838039,-527.79179005,0.00011595,2]
[408478242,1773715838048,-527.79179005,0.00011595,2]
[408478243,1773715838062,-527.79179005,0.00011595,2]
[408478244,1773715838071,-527.79179005,0.00011595,2]
[408478245,1773715838082,-527.79179005,0.00011595,2]
[408478246,1773715838091,-527.79179005,0.00011595,2]
[408478247,1773715838103,-527.79179005,0.00011595,2]
[408478248,1773715838112,-527.79179005,0.00011595,2]
[408478249,1773715838122,-527.79179005,0.00011595,2]
[408478250,1773715838133,-527.79179005,0.00011595,2]
[408478251,1773715838142,-527.79179005,0.00011595,2]
[408478252,1773715838151,-527.79179005,0.00011595,2]
[408478253,1773715838162,-527.79179005,0.00011595,2]
[408478254,1773715838173,-527.79179005,0.00011595,2]
[408478255,1773715838184,-527.79179005,0.00011595,2]
[408478256,1773715838195,-527.79179005,0.00011595,2]
[408478257,1773715838205,-527.79179005,0.00011595,2]
[408478264,1773715838334,-25877.69437818,0.00011596,2]
[408478266,1773715838349,-274758.7426,0.00011596,2]
[408478268,1773715838360,-3004.79211187,0.00011686,2]
[408478270,1773715838370,-150.0,0.00011695,2]
[408478272,1773715838379,-6789.68765998,0.00011792,2]
[408478274,1773715838389,-185.05,0.00011812,2]
[408478276,1773715838399,-827.77,0.00011833,2]
[408478278,1773715838409,-500.0,0.00011866,2]
[408478280,1773715838422,-500.0,0.00011866,2]
[408478282,1773715838440,-151.0,0.00011866,2]
[408478283,1773715838450,-500.0,0.00011866,2]
[408478285,1773715838460,-500.0,0.00011866,2]
[408478287,1773715838469,-151.0,0.00011866,2]
[408478289,1773715838478,-532.10249534,0.00011866,2]
[408478291,1773715838488,-151.0,0.00011866,2]
[408478293,1773715838497,-151.0,0.00011866,2]
[408478295,1773715838506,-151.0,0.00011866,2]
[408478297,1773715838516,-151.0,0.00011866,2]
[408478299,1773715838525,-500.0,0.00011866,2]
[408478301,1773715838537,-204.0271073,0.00011866,2]
[408478303,1773715838548,-500.0,0.00011866,2]
[408478306,1773715838558,-500.0,0.00011866,2]
[408478308,1773715838567,-500.0,0.00011866,2]
[408478310,1773715838576,-500.0,0.00011866,2]
[408478312,1773715838585,-528.30089606,0.00011866,2]
[408478313,1773715838595,-200.0,0.00011866,2]
[408478315,1773715838605,-98461.9268,0.00011873,2]
[408478317,1773715838615,-1500.0,0.00011892,2]
[408478320,1773715838626,-150.0,0.00011892,2]
[408478322,1773715838635,-263.0,0.00011892,2]
[408478323,1773715838644,-181.0,0.00012007,2]
[408478325,1773715838654,-168.0,0.00012025,2]
[408478327,1773715838663,-421.0,0.00012025,2]
[408478328,1773715838672,-380.0,0.00012027,2]
[408478329,1773715838682,-200.0,0.00012031,2]
[408478330,1773715838693,-218.0,0.00012037,2]
[408478331,1773715838703,-993.0,0.00012049,2]
[408478332,1773715838714,-247.0,0.00012055,2]
[408478333,1773715838726,-177.0,0.00012061,2]
[408478334,1773715838735,-1293.7153333,0.00012073,2]
[408478335,1773715838744,-445.0,0.00012073,2]
[408478336,1773715838755,-500.0,0.00012074,2]
[408478337,1773715838765,-374.0,0.00012085,2]
[408478338,1773715838773,-500.0,0.00012097,2]
[408478339,1773715838784,-871.0,0.00012097,2]
[408478340,1773715838792,-185.0,0.00012109,2]
[408478341,1773715838802,-1898.0,0.00012121,2]
[408478342,1773715838813,-408.0,0.00012133,2]
[408478343,1773715838824,-758.0,0.00012145,2]
[408478344,1773715838833,-500.0,0.00012371,2]
[408478345,1773715838842,-2314.35818904,0.00012393,2]
[408478346,1773715838851,-200.0,0.00012414,2]
[408478347,1773715838860,-95.46740515,0.00012431,2]
[408478348,1773715839101,-1687.96159485,0.00012431,2]
[408478349,1773715839112,-154.192,0.00012431,2]
[408478350,1773715839122,-185.05,0.00012468,2]
[408478351,1773715839132,-8882.6885148,0.00012493,2]
[408478352,1773715839142,-500.0,0.00012493,2]
[408478353,1773715839152,-500.0,0.00012493,2]
[408478354,1773715839161,-500.0,0.00012493,2]
[408478355,1773715839171,-500.0,0.00012493,2]
[408478356,1773715839180,-500.0,0.00012493,2]
[408478357,1773715839190,-500.0,0.00012493,2]
[408478358,1773715839199,-500.0,0.00012493,2]
[408478359,1773715839209,-500.0,0.00012493,2]
[408478360,1773715839219,-500.0,0.00012493,2]
[408478361,1773715839235,-282.48816514,0.00012493,2]
[408478362,1773715839256,-260.4103811,0.00012493,2]
[408478363,1773715839273,-350.0,0.00012499,2]
[408478364,1773715839282,-4881.61787784,0.00012521,2]